Workbook

Sheet РПКР
V1: Приложение 1
V2: к постановлению Правительства
V3: Ленинградской области
V4: от 4 сентября 2023 года № 607
V6: Приложение 1 к Программе…
A8: Перечень многоквартирных домов, расположенных на территории Ленинградской области, общее имущество в которых подлежит капитальному ремонту
A11: Перечень многоквартирных домов, расположенных на территории Ленинградской области, общее имущество в которых подлежит капитальному ремонту, за исключением многоквартирных домов, являющихся объектами культурного наследия
A14: № п/п | B14: Наименование муниципального района | C14: Наименование муниципального образования | D14: Адрес многоквартирного дома | E14: Уникальный номер адреса объекта адресации в государственном адресном реестре (Код ФИАС) | F14: Способ формиро-вания фонда капиталь-ного ремонта | G14: Год ввода многоквартирного дома в эксплуата- цию /Год постройки | H14: Общая площадь многоквар- тирного дома, кв.м | I14: Количество лифтов (пасса-жирские + грузовые) | J14: Коли- чество этажей | K14: Период планируемого ремонта
K15: Виды работ | L15: 2014-2016 | M15: 2017-2019 | P15: 2020-2022 | R15: 2023-2025 | S15: 2026-2028 | T15: 2029-2031 | U15: 2032-2034 | V15: 2035-2037 | W15: 2038-2040 | X15: 2041-2043
A17: 1 | B17: 2 | C17: 3 | D17: 4 | E17: 5 | F17: 6 | G17: 7 | H17: 8 | I17: 9 | J17: 10 | K17: 11 | L17: 12 | M17: 13 | P17: 14 | R17: 15 | S17: 16 | T17: 17 | U17: 18 | V17: 19 | W17: 20 | X17: 21
A18: 1 | B18: Бокситогорский муниципальный район | C18: Муниципальное образование Бокситогорское городское поселение | D18: Г. Бокситогорск, ул. Вишнякова, д. 19 | E18: 4ae2c447-8809-425a-9243-69c4b1733c99 | F18: РО | G18: 1989 | H18: 4088.27 | J18: 5 | K18: Крыша подвал фасад, ЭС ТС ХВС ГВС ВО /ПИР | V18: P | W18: P | X18: P
A19: =A18+1 -> 2 | B19: Бокситогорский муниципальный район | C19: Муниципальное образование Бокситогорское городское поселение | D19: Г. Бокситогорск, ул. Вишнякова, д. 4 | E19: 591462c4-0f1d-4122-a414-2dd2359636af | F19: РО | G19: 2016 | H19: 1164 | J19: 3 | K19: Крыша подвал фасад, Фундамент ЭС ХВС ВО ТС ГВС /ПИР | V19: P | W19: P | X19: P
A20: =A19+1 -> 3 | B20: Бокситогорский муниципальный район | C20: Муниципальное образование Бокситогорское городское поселение | D20: Г. Бокситогорск, ул. Вишнякова, д. 2/1 | E20: 39f71769-acab-4d54-a296-c0da7d836dd4 | F20: РО | G20: 1954 | H20: 5794.86 | J20: 3 | K20: Фасад ЭС ХВС ГВС ВО ПУ11 Подвал Фундамент ТС крыша /ПИР | L20: P | M20: P | R20: P | S20: P | V20: P | W20: P
A21: 4 | B21: Бокситогорский муниципальный район | C21: Муниципальное образование Бокситогорское городское поселение | D21: Г. Бокситогорск, ул. Вишнякова, д. 21 | E21: b0856ac3-460b-4c97-b39e-0c9381ebc8e5 | F21: РО | G21: 1967 | H21: 6245.43 | J21: 5 | K21: Подвал фасад, ГВС ВО ЭС ТС ХВС крыша Фундамент /ПИР | P21: P | R21: P | T21: P | V21: P | W21: P | X21: P
A22: 5 | B22: Бокситогорский муниципальный район | C22: Муниципальное образование Бокситогорское городское поселение | D22: Г. Бокситогорск, ул. Вишнякова, д. 23 | E22: 9e5ae969-4d97-4216-b7af-204ebc01f3dc | F22: РО | G22: 1967 | H22: 4773.8 | J22: 5 | K22: Подвал фасад, ХВС ГВС ВО ЭС ТС крыша Фундамент /ПИР | P22: P | R22: P | T22: P | V22: P | W22: P | X22: P
A23: 6 | B23: Бокситогорский муниципальный район | C23: Муниципальное образование Бокситогорское городское поселение | D23: Г. Бокситогорск, ул. Вишнякова, д. 24 | E23: e24ba7e7-1244-4136-a1ae-2159f9dcb6bd | F23: РО | G23: 1961 | H23: 1275.21 | J23: 3 | K23: ЭС подвал фасад ХВС ГВС ВО ТС крыша фундамент /ПИР | M23: P | P23: P | R23: P | V23: P | W23: P
A24: 7 | B24: Бокситогорский муниципальный район | C24: Муниципальное образование Бокситогорское городское поселение | D24: Г. Бокситогорск, ул. Вишнякова, д. 25 | E24: 27a4ee4e-5807-400e-b3a6-05ad225dea64 | F24: РО | G24: 1968 | H24: 4640.58 | J24: 5 | K24: Крыша подвал фасад, ХВС ГВС ЭС ТС ВО Фундамент /ПИР | P24: P | R24: P | T24: P | W24: P | X24: P
A25: 8 | B25: Бокситогорский муниципальный район | C25: Муниципальное образование Бокситогорское городское поселение | D25: Г. Бокситогорск, ул. Вишнякова, д. 26 | E25: 711d53f3-4664-49e1-b5bc-bba624230e2d | F25: РО | G25: 1961 | H25: 1327.86 | J25: 3 | K25: ЭС крыша подвал фасад, ТС ХВС ГВС ВО Фундамент /ПИР | M25: P | P25: P | R25: P | V25: P | W25: P
A26: 9 | B26: Бокситогорский муниципальный район | C26: Муниципальное образование Бокситогорское городское поселение | D26: Г. Бокситогорск, ул. Вишнякова, д. 27 | E26: 607c9e2e-bacc-4d8e-9224-0ea2172750f0 | F26: РО | G26: 1979 | H26: 5946.8 | J26: 5 | K26: Подвал фасад, ЭС ТС ХВС ГВС крыша ВО /ПИР | T26: P | W26: P | X26: P
A27: 10 | B27: Бокситогорский муниципальный район | C27: Муниципальное образование Бокситогорское городское поселение | D27: Г. Бокситогорск, ул. Вишнякова, д. 29 | E27: 6eec3b0b-978a-4635-9542-b222929e21d5 | F27: РО | G27: 1979 | H27: 4812.7 | J27: 5 | K27: Подвал фасад, ЭС ТС ХВС ГВС крыша ВО /ПИР | T27: P | V27: P | W27: P | X27: P
A28: 11 | B28: Бокситогорский муниципальный район | C28: Муниципальное образование Бокситогорское городское поселение | D28: Г. Бокситогорск, ул. Вишнякова, д. 30 | E28: 32e75f38-d673-4e11-b199-e5f07d7d47b1 | F28: РО | G28: 1970 | H28: 6275.53 | J28: 5 | K28: Подвал фасад, ГВС ЭС ТС ХВС ВО крыша Фундамент /ПИР | P28: P | R28: P | V28: P | W28: P | X28: P
A29: 12 | B29: Бокситогорский муниципальный район | C29: Муниципальное образование Бокситогорское городское поселение | D29: Г. Бокситогорск, ул. Вишнякова, д. 32 | E29: 79efbfe4-9e11-44dc-8a9c-dff997ed70b5 | F29: РО | G29: 1971 | H29: 6319.37 | J29: 5 | K29: Подвал фасад, ХВС ГВС ЭС ТС ВО крыша Фундамент /ПИР | P29: P | R29: P | V29: P | W29: P | X29: P
A30: 13 | B30: Бокситогорский муниципальный район | C30: Муниципальное образование Бокситогорское городское поселение | D30: Г. Бокситогорск, ул. Вишнякова, д. 7а | E30: 2dd5f135-0cf3-4c62-9d4b-32177556eca7 | F30: РО | G30: 2012 | H30: 1457.2 | J30: 3 | K30: ЭС ТС ХВС ГВС крыша подвал фасад, /ПИР | X30: P
A31: 14 | B31: Бокситогорский муниципальный район | C31: Муниципальное образование Бокситогорское городское поселение | D31: Г. Бокситогорск, ул. Воронина, д. 7 | E31: e19a59c7-d4f5-45db-8aac-cd079938baaf | F31: РО | G31: 1955 | H31: 1674.68 | J31: 3 | K31: Крыша ТС ХВС ГВС ВО Фундамент Фасад, /ПИР | R31: P | T31: P | V31: P
A32: 15 | B32: Бокситогорский муниципальный район | C32: Муниципальное образование Бокситогорское городское поселение | D32: Г. Бокситогорск, ул. Воронина, д. 9/1 | E32: d6523a21-a776-4c01-931d-6641030ada87 | F32: РО | G32: 1955 | H32: 3057.08 | J32: 3 | K32: ЭС подвал фасад, ХВС ГВС ВО Фундамент ТС крыша /ПИР | R32: P | S32: P | T32: P | V32: P | W32: P
A33: 16 | B33: Бокситогорский муниципальный район | C33: Муниципальное образование Бокситогорское городское поселение | D33: Г. Бокситогорск, ул. Городская, д. 1 | E33: f8265f20-fe67-4dd9-ab6c-98f3a84daaec | F33: РО | G33: 2010 | H33: 3063.4 | J33: 3 | K33: Крыша подвал фасад, ЭС ТС ХВС ГВС ВО /ПИР | V33: P | X33: P
A34: 17 | B34: Бокситогорский муниципальный район | C34: Муниципальное образование Бокситогорское городское поселение | D34: Г. Бокситогорск, ул. Городская, д. 3 | E34: 0638c7a5-bc5e-4a1d-85a0-05b844c5e0c4 | F34: РО | G34: 2010 | H34: 3088.9 | J34: 3 | K34: Крыша подвал фасад, ЭС ТС ХВС ГВС ВО /ПИР | V34: P | X34: P
A35: 18 | B35: Бокситогорский муниципальный район | C35: Муниципальное образование Бокситогорское городское поселение | D35: Г. Бокситогорск, ул. Городская, д. 4 | E35: b35fd228-de9c-4b61-95be-ca88503dbc8b | F35: РО | G35: 2010 | H35: 3828.1 | J35: 3 | K35: Крыша подвал фасад, ЭС ТС ХВС ГВС ВО /ПИР | V35: P | X35: P
A36: 19 | B36: Бокситогорский муниципальный район | C36: Муниципальное образование Бокситогорское городское поселение | D36: Г. Бокситогорск, ул. Заводская, д. 11/2 | E36: 3fc26500-cdbf-4020-ae85-3b00c6ccffc2 | F36: РО | G36: 1940 | H36: 3813.2 | J36: 4 | K36: Фасад, ЭС ТС ХВС ГВС ВО Фундамент Крыша /ПИР | M36: P | P36: P | R36: P | W36: P
A37: 20 | B37: Бокситогорский муниципальный район | C37: Муниципальное образование Бокситогорское городское поселение | D37: Г. Бокситогорск, ул. Заводская, д. 13/1 | E37: 091121eb-1a6d-473c-be20-f2aa8cc52cfd | F37: РО | G37: 1954 | H37: 7964.5 | J37: 3 | K37: Фасад, ЭС ХВС ГВС подвал ВО Фундамент ТС крыша /ПИР | M37: P | P37: P | R37: P | T37: P | V37: P | W37: P
A38: 21 | B38: Бокситогорский муниципальный район | C38: Муниципальное образование Бокситогорское городское поселение | D38: Г. Бокситогорск, ул. Заводская, д. 4 | E38: 03ec4f0f-302f-4e02-ac84-148bac939490 | F38: РО | G38: 1939 | H38: 958.02 | J38: 2 | K38: ЭС подвал фасад, ХВС ГВС ВО Фундамент ТС крыша /ПИР | R38: P | S38: P | T38: P | W38: P
A39: 22 | B39: Бокситогорский муниципальный район | C39: Муниципальное образование Бокситогорское городское поселение | D39: Г. Бокситогорск, ул. Заводская, д. 5 | E39: 4c4dacfc-821a-4f42-b88a-16d77157ee39 | F39: РО | G39: 1959 | H39: 4251.54 | J39: 4 | K39: Крыша Фасад, ЭС подвал ТС ХВС ГВС ВО Фундамент /ПИР | L39: P | M39: P | P39: P | R39: P | V39: P | W39: P
A40: 23 | B40: Бокситогорский муниципальный район | C40: Муниципальное образование Бокситогорское городское поселение | D40: Г. Бокситогорск, ул. Заводская, д. 6 | E40: 3d754a5e-bc16-4b9c-99bc-5976cd9f3a67 | F40: РО | G40: 1958 | H40: 1277.93 | J40: 4 | K40: Фасад, Подвал ТС ВО Фундамент ЭС ХВС ГВС крыша /ПИР | M40: P | P40: P | R40: P | T40: P | V40: P | W40: P
A41: 24 | B41: Бокситогорский муниципальный район | C41: Муниципальное образование Бокситогорское городское поселение | D41: Г. Бокситогорск, ул. Заводская, д. 6а | E41: f768bd0a-264a-4f90-86f0-563cbeb64148 | F41: РО | G41: 1967 | H41: 2820.7 | J41: 4 | K41: Крыша ЭС Подвал фасад, ТС ХВС ГВС ВО Фундамент /ПИР | L41: P | M41: P | P41: P | R41: P | T41: P | V41: P | X41: P
A42: 25 | B42: Бокситогорский муниципальный район | C42: Муниципальное образование Бокситогорское городское поселение | D42: Г. Бокситогорск, ул. Заводская, д. 7/2 | E42: c55cedb5-3668-43b5-a2fa-213b052d16a8 | F42: РО | G42: 1955 | H42: 4323.07 | J42: 4 | K42: Крыша Фасад, ЭС ТС ХВС ГВС подвал ВО Фундамент /ПИР | L42: P | M42: P | P42: P | R42: P | T42: P | V42: P
A43: 26 | B43: Бокситогорский муниципальный район | C43: Муниципальное образование Бокситогорское городское поселение | D43: Г. Бокситогорск, ул. Комсомольская, д. 10 | E43: dbf14551-ffb9-4b07-89d9-e18ee9bfde2f | F43: РО | G43: 1953 | H43: 1036.87 | J43: 2 | K43: Крыша Фасад ЭС ТС ХВС ГВС ВО подвал Фундамент /ПИР | L43: P | M43: P | P43: P | R43: P | S43: P | V43: P
A44: 27 | B44: Бокситогорский муниципальный район | C44: Муниципальное образование Бокситогорское городское поселение | D44: Г. Бокситогорск, ул. Комсомольская, д. 12/18 | E44: 573fbe3a-f095-44b2-ab1b-7266f3203fb0 | F44: РО | G44: 1958 | H44: 2291.92 | J44: 3 | K44: Фасад, ЭС подвал ТС ХВС ГВС ВО Крыша фундамент /ПИР | M44: P | P44: P | R44: P | T44: P | W44: P
A45: 28 | B45: Бокситогорский муниципальный район | C45: Муниципальное образование Бокситогорское городское поселение | D45: Г. Бокситогорск, ул. Комсомольская, д. 13/20 | E45: aeeeadd7-75e5-41db-a5d2-242f0dc57aa0 | F45: РО | G45: 1958 | H45: 1480.34 | J45: 3 | K45: ТС крыша Фасад ЭС подвал ХВС ГВС ВО Фундамент /ПИР | L45: P | M45: P | P45: P | R45: P | T45: P | W45: P
A46: 29 | B46: Бокситогорский муниципальный район | C46: Муниципальное образование Бокситогорское городское поселение | D46: Г. Бокситогорск, ул. Комсомольская, д. 14 | E46: c3a560f0-3bff-4a5c-a50c-8344169ad0e2 | F46: РО | G46: 1958 | H46: 3128.07 | J46: 3 | K46: Фасад ЭС подвал ТС ВО ХВС ГВС крыша фундамент /ПИР | M46: P | P46: P | R46: P | T46: P | W46: P
A47: 30 | B47: Бокситогорский муниципальный район | C47: Муниципальное образование Бокситогорское городское поселение | D47: Г. Бокситогорск, ул. Комсомольская, д. 15 | E47: 64ab82fb-02ad-4b47-9705-d4aa5055b76a | F47: РО | G47: 1958 | H47: 1824 | J47: 3 | K47: Крыша подвал ТС ХВС ГВС ВО ЭС фасад, фундамент /ПИР | M47: P | P47: P | R47: P | T47: P | W47: P
A48: 31 | B48: Бокситогорский муниципальный район | C48: Муниципальное образование Бокситогорское городское поселение | D48: Г. Бокситогорск, ул. Комсомольская, д. 16/11 | E48: c5b167ba-846a-45c1-9183-0b453c30787e | F48: РО | G48: 1957 | H48: 2242.42 | J48: 3 | K48: ЭС подвал ТС ХВС ГВС ВО Фундамент Крыша фасад, /ПИР | M48: P | P48: P | R48: P | T48: P | V48: P | W48: P
A49: 32 | B49: Бокситогорский муниципальный район | C49: Муниципальное образование Бокситогорское городское поселение | D49: Г. Бокситогорск, ул. Комсомольская, д. 17 | E49: c714f6fd-eb67-4ac6-a3fc-455d93a07e1e | F49: РО | G49: 1957 | H49: 2134.85 | J49: 3 | K49: Крыша подвал ТС ХВС ГВС ВО Фундамент ЭС фасад, /ПИР | M49: P | P49: P | R49: P | T49: P | V49: P | W49: P
A50: 33 | B50: Бокситогорский муниципальный район | C50: Муниципальное образование Бокситогорское городское поселение | D50: Г. Бокситогорск, ул. Комсомольская, д. 18/18 | E50: 6881660e-5e16-40ef-8206-5c9146094875 | F50: РО | G50: 1956 | H50: 2071.09 | J50: 3 | K50: ЭС ТС ХВС ГВС подвал фасад, ВО Фундамент Крыша /ПИР | M50: P | P50: P | R50: P | T50: P | V50: P | W50: P
A51: 34 | B51: Бокситогорский муниципальный район | C51: Муниципальное образование Бокситогорское городское поселение | D51: Г. Бокситогорск, ул. Комсомольская, д. 19/13 | E51: f575bb5b-8390-467d-9b4b-f4bc51b73f82 | F51: РО | G51: 1957 | H51: 2454.82 | J51: 3 | K51: ЭС подвал фасад, ХВС ГВС ВО Фундамент ТС крыша /ПИР | M51: P | P51: P | R51: P | T51: P | V51: P | W51: P
A52: 35 | B52: Бокситогорский муниципальный район | C52: Муниципальное образование Бокситогорское городское поселение | D52: Г. Бокситогорск, ул. Комсомольская, д. 20 | E52: 31496e4f-b005-4ee0-8bc9-ffd2fc8dc9c0 | F52: РО | G52: 1956 | H52: 1727.21 | J52: 3 | K52: ТС ЭС ХВС ГВС подвал фасад, ВО Фундамент Крыша /ПИР | L52: P | P52: P | R52: P | T52: P | V52: P | W52: P
A53: 36 | B53: Бокситогорский муниципальный район | C53: Муниципальное образование Бокситогорское городское поселение | D53: Г. Бокситогорск, ул. Комсомольская, д. 24 | E53: 63920e0b-3562-4da0-9937-baa9265dfd5e | F53: РО | G53: 1956 | H53: 1708.53 | J53: 3 | K53: ТС ЭС ХВС ГВС подвал ВО Фундамент Крыша фасад, /ПИР | L53: P | P53: P | R53: P | T53: P | V53: P | W53: P
A54: 37 | B54: Бокситогорский муниципальный район | C54: Муниципальное образование Бокситогорское городское поселение | D54: Г. Бокситогорск, ул. Комсомольская, д. 26/11 | E54: ea57dc15-8c5e-4f35-8c3a-1a8aeea4995d | F54: РО | G54: 1957 | H54: 2818.81 | J54: 3 | K54: Фасад крыша, подвал ТС ХВС ГВС ВО Фундамент ЭС /ПИР | L54: P | M54: P | P54: P | R54: P | T54: P | V54: P | W54: P
A55: 38 | B55: Бокситогорский муниципальный район | C55: Муниципальное образование Бокситогорское городское поселение | D55: Г. Бокситогорск, ул. Комсомольская, д. 3 | E55: 30f748a4-47de-4cef-a973-488a48bef58b | F55: РО | G55: 1956 | H55: 1746.08 | J55: 3 | K55: ТС Фасад, ЭС ХВС ГВС подвал ВО Фундамент Крыша /ПИР | L55: P | M55: P | P55: P | R55: P | T55: P | V55: P | W55: P
A56: 39 | B56: Бокситогорский муниципальный район | C56: Муниципальное образование Бокситогорское городское поселение | D56: Г. Бокситогорск, ул. Комсомольская, д. 5 | E56: 10677b10-ffc3-41f0-ad6c-d8c2b170e756 | F56: РО | G56: 1957 | H56: 9796.26 | J56: 3 | K56: Фасад, Подвал ГВС ВО Фундамент ЭС ТС ХВС крыша /ПИР | M56: P | P56: P | R56: P | T56: P | V56: P | W56: P
A57: 40 | B57: Бокситогорский муниципальный район | C57: Муниципальное образование Бокситогорское городское поселение | D57: Г. Бокситогорск, ул. Комсомольская, д. 6 | E57: fdd6338c-dcfe-48cf-9dda-148a8b4152e0 | F57: РО | G57: 1956 | H57: 705.07 | J57: 2 | K57: Фасад, ЭС ТС ХВС ГВС подвал ВО Фундамент Крыша /ПИР | M57: P | P57: P | R57: P | T57: P | V57: P | W57: P
A58: 41 | B58: Бокситогорский муниципальный район | C58: Муниципальное образование Бокситогорское городское поселение | D58: Г. Бокситогорск, ул. Комсомольская, д. 7 | E58: 1990cc90-c9c7-44d3-836f-da61ee7b6d35 | F58: РО | G58: 1956 | H58: 5639.8 | J58: 3 | K58: Крыша ТС Фасад, ЭС ХВС ГВС подвал ВО Фундамент /ПИР | L58: P | M58: P | P58: P | R58: P | T58: P | V58: P
A59: 42 | B59: Бокситогорский муниципальный район | C59: Муниципальное образование Бокситогорское городское поселение | D59: Г. Бокситогорск, ул. Комсомольская, д. 8 | E59: af4c21da-2eac-41d4-99d7-164743bf1751 | F59: РО | G59: 1956 | H59: 1120.6 | J59: 2 | K59: Фасад, ЭС ТС ХВС ГВС подвал ВО Фундамент Крыша /ПИР | M59: P | P59: P | R59: P | T59: P | V59: P | W59: P
A60: 43 | B60: Бокситогорский муниципальный район | C60: Муниципальное образование Бокситогорское городское поселение | D60: Г. Бокситогорск, ул. Красная, д. 1 | E60: d22e80d0-acdc-43d9-9ee0-d001d9da863c | F60: РО | G60: 1996 | H60: 4132.31 | J60: 5 | K60: Крыша подвал фасад, ЭС ТС ХВС ГВС ВО /ПИР | V60: P | X60: P
A61: 44 | B61: Бокситогорский муниципальный район | C61: Муниципальное образование Бокситогорское городское поселение | D61: Г. Бокситогорск, ул. Красных Следопытов, д. 1 | E61: 59003e87-cdb8-45c9-ad76-f6dd6ae5ac18 | F61: РО | G61: 1975 | H61: 5363.56 | J61: 5 | K61: Подвал фасад, ЭС ТС ХВС ГВС крыша ВО /ПИР | P61: P | R61: P | U61: P | V61: P | W61: P | X61: P
A62: 45 | B62: Бокситогорский муниципальный район | C62: Муниципальное образование Бокситогорское городское поселение | D62: Г. Бокситогорск, ул. Красных Следопытов, д. 10 | E62: ed97cb5e-1328-4b98-8ed1-f8fb026b800c | F62: РО | G62: 1986 | H62: 8506.4 | J62: 5 | K62: ЭС крыша подвал фасад, ТС ХВС ГВС ВО /ПИР | S62: P | V62: P | X62: P
A63: 46 | B63: Бокситогорский муниципальный район | C63: Муниципальное образование Бокситогорское городское поселение | D63: Г. Бокситогорск, ул. Красных Следопытов, д. 12 | E63: 624fd1d1-4986-48c7-beb8-842871afe63e | F63: РО | G63: 1984 | H63: 6201.7 | J63: 5 | K63: ЭС крыша подвал фасад, ТС ХВС ГВС ВО /ПИР | V63: P | X63: P
A64: 47 | B64: Бокситогорский муниципальный район | C64: Муниципальное образование Бокситогорское городское поселение | D64: Г. Бокситогорск, ул. Красных Следопытов, д. 14 | E64: cfa42486-9295-45f5-a85c-3878a0ed87e5 | F64: РО | G64: 1985 | H64: 7713.73 | J64: 5 | K64: ЭС крыша подвал фасад, ТС ХВС ГВС ВО /ПИР | V64: P | X64: P
A65: 48 | B65: Бокситогорский муниципальный район | C65: Муниципальное образование Бокситогорское городское поселение | D65: Г. Бокситогорск, ул. Красных Следопытов, д. 3 | E65: b11ee3c4-cca2-4e7b-a852-38cab42376ce | F65: РО | G65: 1974 | H65: 6066.74 | J65: 5 | K65: Крыша подвал фасад, ЭС ТС ХВС ГВС ВО /ПИР | P65: P | R65: P | W65: P | X65: P
A66: 49 | B66: Бокситогорский муниципальный район | C66: Муниципальное образование Бокситогорское городское поселение | D66: Г. Бокситогорск, ул. Красных Следопытов, д. 4 | E66: d6912a8f-fbcd-4b41-9aa4-f08372776ce9 | F66: РО | G66: 1977 | H66: 6174.18 | J66: 5 | K66: Крыша подвал фасад, ХВС ГВС ЭС ТС ВО /ПИР | P66: P | R66: P | V66: P | W66: P | X66: P
A67: 50 | B67: Бокситогорский муниципальный район | C67: Муниципальное образование Бокситогорское городское поселение | D67: Г. Бокситогорск, ул. Красных Следопытов, д. 5 | E67: c710f25d-993a-41d0-940d-4a179a4a369b | F67: РО | G67: 1976 | H67: 6323.96 | J67: 5 | K67: Подвал фасад, ЭС ХВС ГВС ТС крыша ВО /ПИР | P67: P | R67: P | U67: P | V67: P | W67: P | X67: P
A68: 51 | B68: Бокситогорский муниципальный район | C68: Муниципальное образование Бокситогорское городское поселение | D68: Г. Бокситогорск, ул. Красных Следопытов, д. 6 | E68: b9190837-7d1e-401d-8d27-3e67b23b9f53 | F68: РО | G68: 1978 | H68: 6519.57 | J68: 5 | K68: Крыша подвал фасад, ЭС ТС ХВС ГВС ВО /ПИР | T68: P | U68: P | W68: P | X68: P
A69: 52 | B69: Бокситогорский муниципальный район | C69: Муниципальное образование Бокситогорское городское поселение | D69: Г. Бокситогорск, ул. Красных Следопытов, д. 7 | E69: 1d5c9418-0dd7-45de-977c-ce08337f887b | F69: ССРО | G69: 1985 | H69: 8244.83 | J69: 5 | K69: ЭС подвал Крыша фасад, ТС ХВС ГВС ВО /ПИР | V69: P | W69: P | X69: P
A70: 53 | B70: Бокситогорский муниципальный район | C70: Муниципальное образование Бокситогорское городское поселение | D70: Г. Бокситогорск, ул. Красных Следопытов, д. 8 | E70: 4089b0bb-a77f-41ee-919a-761c5da5c9ee | F70: РО | G70: 1979 | H70: 6901.44 | J70: 5 | K70: Крыша подвал фасад, ЭС ТС ХВС ГВС ВО /ПИР | T70: P | V70: P | W70: P | X70: P
A71: 54 | B71: Бокситогорский муниципальный район | C71: Муниципальное образование Бокситогорское городское поселение | D71: Г. Бокситогорск, ул. Металлургов, д. 1/31 | E71: 3a8d15a0-ef75-42f7-a80c-145bd49127a4 | F71: РО | G71: 1981 | H71: 8924.06 | J71: 5 | K71: Крыша подвал фасад, ЭС ТС ХВС ГВС ВО /ПИР | R71: P | T71: P | V71: P | W71: P | X71: P
A72: 55 | B72: Бокситогорский муниципальный район | C72: Муниципальное образование Бокситогорское городское поселение | D72: Г. Бокситогорск, ул. Металлургов, д. 2 | E72: afa9d62f-78c8-4c1c-96a8-4b48d7c9e968 | F72: РО | G72: 1992 | H72: =8267.4+1321.43 -> 9588.83 | J72: 5 | K72: Крыша подвал фасад, ЭС ТС ХВС ГВС ВО /ПИР | V72: P | W72: P | X72: P
A73: 56 | B73: Бокситогорский муниципальный район | C73: Муниципальное образование Бокситогорское городское поселение | D73: Г. Бокситогорск, ул. Металлургов, д. 3 | E73: 9cf5e42b-56aa-4cb0-b776-daadde305c70 | F73: РО | G73: 1980 | H73: 5431.12 | J73: 5 | K73: Крыша подвал фасад, ЭС ТС ХВС ГВС ВО /ПИР | T73: P | V73: P | W73: P | X73: P
A74: 57 | B74: Бокситогорский муниципальный район | C74: Муниципальное образование Бокситогорское городское поселение | D74: Г. Бокситогорск, ул. Металлургов, д. 4 | E74: b157e326-d3df-4061-bac3-627205722545 | F74: РО | G74: 1996 | H74: 4118.84 | J74: 5 | K74: Крыша подвал фасад, ЭС ТС ХВС ГВС ВО /ПИР | V74: P | X74: P
A75: 58 | B75: Бокситогорский муниципальный район | C75: Муниципальное образование Бокситогорское городское поселение | D75: Г. Бокситогорск, ул. Металлургов, д. 5 | E75: 4fecbf51-3666-4db3-9fa0-9f21277cf737 | F75: РО | G75: 1982 | H75: 5861 | J75: 5 | K75: Крыша подвал фасад, ЭС ТС ХВС ГВС ВО /ПИР | T75: P | V75: P | W75: P | X75: P
A76: 59 | B76: Бокситогорский муниципальный район | C76: Муниципальное образование Бокситогорское городское поселение | D76: Г. Бокситогорск, ул. Металлургов, д. 7 | E76: 8ba62858-2949-4cf9-936d-006332325116 | F76: РО | G76: 1988 | H76: 6297.7 | J76: 5 | K76: Подвал фасад, ЭС крыша ТС ХВС ГВС ВО /ПИР | V76: P | W76: P | X76: P
A77: 60 | B77: Бокситогорский муниципальный район | C77: Муниципальное образование Бокситогорское городское поселение | D77: Г. Бокситогорск, ул. Нагорная, д. 1 | E77: dca96bc9-4fb6-4b75-b16a-1273f4487af7 | F77: РО | G77: 1980 | H77: 6111.68 | J77: 5 | K77: Крыша подвал фасад, ЭС ТС ХВС ГВС ВО /ПИР | T77: P | V77: P | W77: P | X77: P
A78: 61 | B78: Бокситогорский муниципальный район | C78: Муниципальное образование Бокситогорское городское поселение | D78: Г. Бокситогорск, ул. Нагорная, д. 2 | E78: 52b8d1e5-4ef2-4ef7-aa2f-b0216fd68ed0 | F78: РО | G78: 1992 | H78: 4051.3 | J78: 5 | K78: Крыша подвал фасад, ЭС ТС ХВС ГВС ВО /ПИР | V78: P | W78: P | X78: P
A79: 62 | B79: Бокситогорский муниципальный район | C79: Муниципальное образование Бокситогорское городское поселение | D79: Г. Бокситогорск, ул. Новогородская, д. 12 | E79: 624acd19-34b0-4aec-94c8-0d6e2c28eb94 | F79: РО | G79: 1987 | H79: 2048.3 | J79: 5 | K79: Крыша подвал фасад, ЭС ТС ХВС ГВС ВО /ПИР | V79: P | W79: P | X79: P
A80: 63 | B80: Бокситогорский муниципальный район | C80: Муниципальное образование Бокситогорское городское поселение | D80: Г. Бокситогорск, ул. Новогородская, д. 14 | E80: 15f8724a-807c-4af9-9672-455724e7410f | F80: РО | G80: 1986 | H80: 2049.95 | J80: 3 | K80: Крыша подвал фасад, ЭС ТС ХВС ГВС ВО /ПИР | V80: P | W80: P | X80: P
A81: 64 | B81: Бокситогорский муниципальный район | C81: Муниципальное образование Бокситогорское городское поселение | D81: Г. Бокситогорск, ул. Новогородская, д. 4 | E81: 574dd4cc-b9de-4104-ac01-49d697b11da6 | F81: РО | G81: 1955 | H81: 1793.23 | J81: 3 | K81: ТС ХВС ГВС подвал ВО Фундамент ЭС крыша фасад, /ПИР | P81: P | R81: P | T81: P | V81: P | W81: P
A82: 65 | B82: Бокситогорский муниципальный район | C82: Муниципальное образование Бокситогорское городское поселение | D82: Г. Бокситогорск, ул. Новогородская, д. 6 | E82: 24b9028b-c749-407b-ab40-fb515c335024 | F82: РО | G82: 1955 | H82: 1753.35 | J82: 3 | K82: ТС ХВС ГВС подвал ВО Фундамент ЭС крыша фасад, /ПИР | L82: P | P82: P | R82: P | T82: P | V82: P | W82: P
A83: 66 | B83: Бокситогорский муниципальный район | C83: Муниципальное образование Бокситогорское городское поселение | D83: Г. Бокситогорск, ул. Новогородская, д. 8 | E83: c6d0bb30-dd7c-4900-920b-47932c523896 | F83: РО | G83: 1955 | H83: 1035.71 | J83: 2 | K83: ТС ХВС ГВС подвал ВО Фундамент ЭС крыша фасад, /ПИР | P83: P | R83: P | T83: P | V83: P | W83: P
A84: =A83+1 -> 67 | B84: Бокситогорский муниципальный район | C84: Муниципальное образование Бокситогорское городское поселение | D84: Г. Бокситогорск, ул. Павлова, д. 15 | E84: e59dd00a-fb39-4ecc-a51e-76aa0b3e7436 | F84: РО | G84: 1958 | H84: 1849.42 | J84: 3 | K84: ЭС крыша подвал ХВС ГВС ВО ТС фасад, фундамент /ПИР | M84: P | P84: P | R84: P | T84: P | W84: P
A85: 68 | B85: Бокситогорский муниципальный район | C85: Муниципальное образование Бокситогорское городское поселение | D85: Г. Бокситогорск, ул. Павлова, д. 16 | E85: 981c88ed-1abc-4775-92cf-1efd5e963982 | F85: РО | G85: 1989 | H85: 12152.5 | J85: 5 | K85: Подвал ЭС крыша фасад, ТС ХВС ГВС ВО /ПИР | V85: P | W85: P | X85: P
A86: 69 | B86: Бокситогорский муниципальный район | C86: Муниципальное образование Бокситогорское городское поселение | D86: Г. Бокситогорск, ул. Павлова, д. 17 | E86: e4558cad-c98e-40df-87ab-14a2b8686658 | F86: РО | G86: 1958 | H86: 8582.7 | J86: 3 | K86: ЭС крыша подвал ХВС ГВС ВО ТС фасад, фундамент /ПИР | M86: P | P86: P | R86: P | T86: P | W86: P
A87: 70 | B87: Бокситогорский муниципальный район | C87: Муниципальное образование Бокситогорское городское поселение | D87: Г. Бокситогорск, ул. Павлова, д. 18 | E87: 134a3277-d40a-40d3-9e25-6ffb4448da65 | F87: РО | G87: 2009 | H87: 2738.1 | J87: 3 | K87: Крыша фасад, ЭС ТС ХВС ГВС подвал /ПИР | M87: P | P87: P | R87: P | X87: P
A88: 71 | B88: Бокситогорский муниципальный район | C88: Муниципальное образование Бокситогорское городское поселение | D88: Г. Бокситогорск, ул. Павлова, д. 35 | E88: 501a96f8-9411-4bcc-a357-6dedcd9a1ff0 | F88: РО | G88: 2016 | H88: 2101.2 | J88: 3 | K88: Крыша подвал фасад, Фундамент ЭС ХВС ВО ТС ГВС /ПИР | V88: P | W88: P | X88: P
A89: 72 | B89: Бокситогорский муниципальный район | C89: Муниципальное образование Бокситогорское городское поселение | D89: Г. Бокситогорск, ул. Павлова, д. 18а | E89: 0427b144-bcee-4868-a309-b3a275b223c1 | F89: РО | G89: 2012 | H89: 2639.7 | J89: 3 | K89: ЭС ТС ХВС ГВС крыша подвал фасад, /ПИР | X89: P
A90: 73 | B90: Бокситогорский муниципальный район | C90: Муниципальное образование Бокситогорское городское поселение | D90: Г. Бокситогорск, ул. Павлова, д. 19 | E90: 80c35101-94b5-4268-9b2c-62d9caeead37 | F90: РО | G90: 1959 | H90: 1482.55 | J90: 3 | K90: ЭС крыша подвал фасад, ТС ХВС ГВС ВО Фундамент /ПИР | M90: P | P90: P | R90: P | U90: P | W90: P
A91: 74 | B91: Бокситогорский муниципальный район | C91: Муниципальное образование Бокситогорское городское поселение | D91: Г. Бокситогорск, ул. Павлова, д. 21 | E91: 64209d18-8b69-4b78-8dd7-2e9e828b751c | F91: РО | G91: 1973 | H91: 6456.57 | J91: 5 | K91: Крыша подвал фасад, ЭС ТС ХВС ГВС ВО /ПИР | P91: P | R91: P | W91: P | X91: P
A92: 75 | B92: Бокситогорский муниципальный район | C92: Муниципальное образование Бокситогорское городское поселение | D92: Г. Бокситогорск, ул. Павлова, д. 23 | E92: c6cf25d8-2740-42d9-941f-5a93cd56b998 | F92: РО | G92: 1973 | H92: 4653.69 | J92: 5 | K92: Крыша подвал фасад, ЭС ХВС ГВС ТС ВО /ПИР | P92: P | R92: P | U92: P | V92: P | W92: P | X92: P
A93: 76 | B93: Бокситогорский муниципальный район | C93: Муниципальное образование Бокситогорское городское поселение | D93: Г. Бокситогорск, ул. Павлова, д. 25 | E93: b23fe215-fedd-4cff-87a8-3cfc1682076b | F93: РО | G93: 1974 | H93: 6262.92 | J93: 5 | K93: Крыша подвал фасад, ХВС ГВС ЭС ТС ВО /ПИР | P93: P | R93: P | V93: P | W93: P | X93: P
A94: 77 | B94: Бокситогорский муниципальный район | C94: Муниципальное образование Бокситогорское городское поселение | D94: Г. Бокситогорск, ул. Павлова, д. 27/2 | E94: 3bf911f1-2310-4558-adfe-7e77eae9bf4f | F94: РО | G94: 1978 | H94: 10167.97 | J94: 5 | K94: Крыша подвал фасад, ЭС ТС ХВС ГВС ВО /ПИР | T94: P | U94: P | W94: P | X94: P
A95: 78 | B95: Бокситогорский муниципальный район | C95: Муниципальное образование Бокситогорское городское поселение | D95: Г. Бокситогорск, ул. Павлова, д. 29 | E95: bd883aa4-d2af-4edd-9736-adde0a6735ea | F95: РО | G95: 1983 | H95: 4132.7 | J95: 5 | K95: Подвал фасад, ЭС Крыша ТС ХВС ГВС ВО /ПИР | T95: P | V95: P | W95: P | X95: P
A96: 79 | B96: Бокситогорский муниципальный район | C96: Муниципальное образование Бокситогорское городское поселение | D96: Г. Бокситогорск, ул. Павлова, д. 33 | E96: 1a44ea76-7894-4322-9d43-1b7534ff57da | F96: РО | G96: 1988 | H96: 4134.08 | J96: 5 | K96: Подвал фасад, ЭС крыша ТС ХВС ГВС ВО /ПИР | V96: P | W96: P | X96: P
A97: 80 | B97: Бокситогорский муниципальный район | C97: Муниципальное образование Бокситогорское городское поселение | D97: Г. Бокситогорск, ул. Павлова, д. 37 | E97: fa9a3db1-330d-40c2-beac-29f9ac56c3ab | F97: РО | G97: 1993 | H97: 6195.77 | J97: 5 | K97: Крыша подвал фасад, ЭС ТС ХВС ГВС ВО /ПИР | V97: P | X97: P
A98: 81 | B98: Бокситогорский муниципальный район | C98: Муниципальное образование Бокситогорское городское поселение | D98: Г. Бокситогорск, ул. Павлова, д. 39 | E98: 0d96b60c-3f2f-4b66-90a2-6f081c445887 | F98: РО | G98: 1994 | H98: 4089.57 | J98: 5 | K98: Крыша подвал фасад, ЭС ТС ХВС ГВС ВО /ПИР | V98: P | X98: P
A99: 82 | B99: Бокситогорский муниципальный район | C99: Муниципальное образование Бокситогорское городское поселение | D99: Г. Бокситогорск, ул. Павлова, д. 3а | E99: 04e98ec3-3ebd-4aa4-b1b5-27783fb5117e | F99: РО | G99: 2014 | H99: 1591.6 | J99: 3 | K99: ЭС ТС ХВС ГВС крыша фасад, подвал ВО фундамент /ПИР | V99: P | X99: P
A100: 83 | B100: Бокситогорский муниципальный район | C100: Муниципальное образование Бокситогорское городское поселение | D100: Г. Бокситогорск, ул. Павлова, д. 4 | E100: cbacd0b7-939d-4ee3-9c6d-9656ae2a68a8 | F100: РО | G100: 1990 | H100: 4195.48 | J100: 5 | K100: Крыша подвал ЭС фасад, ТС ХВС ГВС ВО /ПИР | V100: P | W100: P | X100: P
A101: 84 | B101: Бокситогорский муниципальный район | C101: Муниципальное образование Бокситогорское городское поселение | D101: Г. Бокситогорск, ул. Павлова, д. 7 | E101: 74e5a47d-b0ec-4ccb-a726-f1e0e2a507a3 | F101: СС | G101: 1986 | H101: 3458 | J101: 5 | K101: ЭС подвал фасад, Крыша ТС ХВС ГВС ВО фундамент /ПИР | V101: P | W101: P | X101: P
A102: 85 | B102: Бокситогорский муниципальный район | C102: Муниципальное образование Бокситогорское городское поселение | D102: Г. Бокситогорск, ул. Павлова, д. 8 | E102: daa188ba-dcf6-4d81-b002-09358bc420e4 | F102: РО | G102: 1990 | H102: 11063.2 | J102: 5 | K102: Подвал ЭС крыша фасад, ТС ХВС ГВС ВО /ПИР | V102: P | W102: P | X102: P
A103: 86 | B103: Бокситогорский муниципальный район | C103: Муниципальное образование Бокситогорское городское поселение | D103: Г. Бокситогорск, ул. Павлова, д. 9а | E103: bc5d62eb-32bf-47cc-9abf-c7bbe87731e0 | F103: РО | G103: 1990 | H103: 2535.9 | J103: 4 | K103: Крыша подвал фасад, ЭС ТС ХВС ГВС ВО /ПИР | V103: P | W103: P | X103: P
A104: 87 | B104: Бокситогорский муниципальный район | C104: Муниципальное образование Бокситогорское городское поселение | D104: Г. Бокситогорск, ул. Садовая, д. 11 | E104: 3f7710f4-0070-425d-b5e7-7ead388999ce | F104: РО | G104: 1964 | H104: 3428.43 | J104: 5 | K104: Фасад, ЭС крыша подвал ХВС ГВС ТС ВО Фундамент /ПИР | M104: P | P104: P | R104: P | T104: P | W104: P | X104: P
A105: 88 | B105: Бокситогорский муниципальный район | C105: Муниципальное образование Бокситогорское городское поселение | D105: Г. Бокситогорск, ул. Садовая, д. 12/7 | E105: 580fdf76-16d4-4e04-a7b7-53520d71b89a | F105: РО | G105: 1957 | H105: 4667.03 | J105: 3 | K105: Крыша ТС ХВС ГВС ВО Фасад, ПУ ЭС подвал Фундамент /ПИР | L105: P | M105: P | P105: P | R105: P | V105: P
A106: 89 | B106: Бокситогорский муниципальный район | C106: Муниципальное образование Бокситогорское городское поселение | D106: Г. Бокситогорск, ул. Садовая, д. 13 | E106: a3d53c5b-18dc-4948-9c26-6d676f3b425e | F106: РО | G106: 1966 | H106: 6376.42 | J106: 5 | K106: Фасад, подвал ВО ЭС ТС ХВС ГВС крыша Фундамент /ПИР | M106: P | P106: P | R106: P | V106: P | W106: P | X106: P
A107: 90 | B107: Бокситогорский муниципальный район | C107: Муниципальное образование Бокситогорское городское поселение | D107: Г. Бокситогорск, ул. Садовая, д. 14 | E107: 5f3828ca-6965-43d7-a010-4db189ed589d | F107: РО | G107: 1956 | H107: 1537.94 | J107: 3 | K107: Фасад, ТС ЭС ХВС ГВС подвал ВО Фундамент Крыша /ПИР | M107: P | P107: P | R107: P | T107: P | V107: P | W107: P
A108: 91 | B108: Бокситогорский муниципальный район | C108: Муниципальное образование Бокситогорское городское поселение | D108: Г. Бокситогорск, ул. Садовая, д. 15 | E108: fccae332-94ec-4d27-9d1f-76ff679c0b23 | F108: РО | G108: 1966 | H108: 3005.43 | J108: 4 | K108: Подвал фасад, ТС ХВС ГВС ВО ЭС крыша Фундамент /ПИР | P108: P | R108: P | T108: P | V108: P | W108: P | X108: P
A109: 92 | B109: Бокситогорский муниципальный район | C109: Муниципальное образование Бокситогорское городское поселение | D109: Г. Бокситогорск, ул. Садовая, д. 16/19 | E109: 655a3c03-c3e9-4dc4-98de-572f7b43a985 | F109: РО | G109: 1956 | H109: 2697.82 | J109: 3 | K109: Крыша ЭС фасад, ТС ХВС ГВС ВО подвал Фундамент /ПИР | L109: P | M109: P | P109: P | R109: P | T109: P | V109: P
A110: 93 | B110: Бокситогорский муниципальный район | C110: Муниципальное образование Бокситогорское городское поселение | D110: Г. Бокситогорск, ул. Садовая, д. 20 | E110: f2cd1302-33a4-4be8-a13e-2939ada68247 | F110: РО | G110: 1959 | H110: 1953.81 | J110: 3 | K110: ЭС Фасад крыша, подвал ТС ВО ХВС ГВС фундамент /ПИР | L110: P | M110: P | P110: P | R110: P | V110: P | W110: P
A111: 94 | B111: Бокситогорский муниципальный район | C111: Муниципальное образование Бокситогорское городское поселение | D111: Г. Бокситогорск, ул. Садовая, д. 20а | E111: 23e1fcd6-5c15-43b9-8778-17e124dc08ef | F111: РО | G111: 1961 | H111: 1980.37 | J111: 3 | K111: ЭС подвал ТС ВО ХВС ГВС крыша фасад, фундамент /ПИР | P111: P | R111: P | V111: P | W111: P
A112: 95 | B112: Бокситогорский муниципальный район | C112: Муниципальное образование Бокситогорское городское поселение | D112: Г. Бокситогорск, ул. Садовая, д. 22 | E112: 16b39725-a0dd-4dcc-af83-340ae78b6f31 | F112: РО | G112: 1959 | H112: 1960.05 | J112: 3 | K112: ЭС Фасад крыша, подвал ТС ВО ХВС ГВС фундамент /ПИР | L112: P | M112: P | P112: P | R112: P | V112: P | W112: P
A113: 96 | B113: Бокситогорский муниципальный район | C113: Муниципальное образование Бокситогорское городское поселение | D113: Г. Бокситогорск, ул. Садовая, д. 22а | E113: 7de25188-656e-431e-b27c-7d50ecdce840 | F113: РО | G113: 1961 | H113: 1940 | J113: 3 | K113: Подвал ТС ВО ЭС ХВС ГВС крыша фасад, фундамент /ПИР | P113: P | R113: P | V113: P | W113: P
A114: 97 | B114: Бокситогорский муниципальный район | C114: Муниципальное образование Бокситогорское городское поселение | D114: Г. Бокситогорск, ул. Садовая, д. 3 | E114: be0bac10-3a0d-458c-8dcf-1de2303f9608 | F114: РО | G114: 1961 | H114: 3268.91 | J114: 4 | K114: Крыша Фасад, ЭС подвал ВО ТС ХВС ГВС фундамент /ПИР | M114: P | P114: P | R114: P | V114: P | W114: P
A115: 98 | B115: Бокситогорский муниципальный район | C115: Муниципальное образование Бокситогорское городское поселение | D115: Г. Бокситогорск, ул. Садовая, д. 5 | E115: 542ddda0-5a67-4240-b3ad-b5ca24a01646 | F115: РО | G115: 1963 | H115: 2686.21 | J115: 4 | K115: Крыша подвал фасад, ГВС ВО ЭС ТС ХВС Фундамент /ПИР | M115: P | P115: P | R115: P | V115: P | W115: P | X115: P
A116: 99 | B116: Бокситогорский муниципальный район | C116: Муниципальное образование Бокситогорское городское поселение | D116: Г. Бокситогорск, ул. Садовая, д. 5а | E116: 5f48a051-029c-4584-a1c2-1aa3fd92111d | F116: РО | G116: 1968 | H116: 7990.58 | J116: 5 | K116: Подвал фасад, ЭС ХВС ГВС ТС ВО крыша Фундамент /ПИР | M116: P | P116: P | R116: P | T116: P | W116: P | X116: P
A117: 100 | B117: Бокситогорский муниципальный район | C117: Муниципальное образование Бокситогорское городское поселение | D117: Г. Бокситогорск, ул. Садовая, д. 7 | E117: 04570e62-f9b4-46f5-b414-d17abbb521ab | F117: РО | G117: 1965 | H117: 2943.54 | J117: 4 | K117: ЭС крыша подвал ВО ТС ХВС ГВС фасад, Фундамент /ПИР | M117: P | P117: P | R117: P | U117: P | V117: P | W117: P
A118: 101 | B118: Бокситогорский муниципальный район | C118: Муниципальное образование Бокситогорское городское поселение | D118: Г. Бокситогорск, ул. Садовая, д. 9 | E118: 0fd027bd-6f0d-492c-b9bb-73a5ba453f27 | F118: РО | G118: 1963 | H118: 3579.49 | J118: 5 | K118: ЭС подвал фасад, ВО ТС ХВС ГВС крыша Фундамент /ПИР | M118: P | P118: P | R118: P | V118: P | W118: P | X118: P
A119: 102 | B119: Бокситогорский муниципальный район | C119: Муниципальное образование Бокситогорское городское поселение | D119: Г. Бокситогорск, ул. Советская, д. 10 | E119: 827e5947-cc51-4136-b667-46872f6639d8 | F119: РО | G119: 2009 | H119: 4656.69 | J119: 3 | K119: Крыша подвал фасад, ЭС ТС ХВС ГВС ВО /ПИР | V119: P | X119: P
A120: 103 | B120: Бокситогорский муниципальный район | C120: Муниципальное образование Бокситогорское городское поселение | D120: Г. Бокситогорск, ул. Советская, д. 11 | E120: 384c833b-92d0-4122-8874-ae0f08e1b37b | F120: РО | G120: 1953 | H120: 905.93 | J120: 2 | K120: Фасад, ЭС ТС ХВС ГВС подвал ВО Фундамент Крыша /ПИР | M120: P | P120: P | R120: P | V120: P | W120: P
A121: 104 | B121: Бокситогорский муниципальный район | C121: Муниципальное образование Бокситогорское городское поселение | D121: Г. Бокситогорск, ул. Советская, д. 17 | E121: 5bf27c26-525a-411f-aead-080c6593c89f | F121: РО | G121: 1952 | H121: 406.6 | J121: 2 | K121: ТС ХВС ГВС ВО Фундамент ЭС крыша фасад, /ПИР | P121: P | R121: P | V121: P | W121: P
A122: 105 | B122: Бокситогорский муниципальный район | C122: Муниципальное образование Бокситогорское городское поселение | D122: Г. Бокситогорск, ул. Советская, д. 4 | E122: 9eb90da4-1228-49b2-80bc-d0d20f1d1bcb | F122: РО | G122: 1952 | H122: 772.78 | J122: 2 | K122: ТС ХВС ГВС ВО подвал Фундамент ЭС крыша фасад, /ПИР | P122: P | R122: P | U122: P | W122: P
A123: 106 | B123: Бокситогорский муниципальный район | C123: Муниципальное образование Бокситогорское городское поселение | D123: Г. Бокситогорск, ул. Советская, д. 8 | E123: 2854475b-3b71-44c4-b52b-23881085f378 | F123: РО | G123: 1953 | H123: 830 | J123: 2 | K123: Фасад, ЭС ТС ХВС ГВС ВО подвал Фундамент Крыша /ПИР | M123: P | P123: P | R123: P | U123: P | W123: P
A124: 107 | B124: Бокситогорский муниципальный район | C124: Муниципальное образование Бокситогорское городское поселение | D124: Г. Бокситогорск, ул. Советская, д. 9 | E124: a742a749-59ff-4814-9de4-53cc01c7a0c1 | F124: РО | G124: 1955 | H124: 706.26 | J124: 2 | K124: Подвал ТС ХВС ГВС ВО Фундамент ЭС крыша фасад, /ПИР | M124: P | P124: P | R124: P | T124: P | V124: P | W124: P
A125: 108 | B125: Бокситогорский муниципальный район | C125: Муниципальное образование Бокситогорское городское поселение | D125: Г. Бокситогорск, ул. Социалистическая, д. 1 | E125: a449636b-8b65-40d0-8d5f-4e735c0f9d10 | F125: РО | G125: 1939 | H125: 6105.89 | J125: 5 | K125: ЭС ТС ХВС ГВС ВО подвал фасад, фундамент ПУ крыша /ПИР | L125: P | M125: P | P125: P | R125: P | W125: P
A126: 109 | B126: Бокситогорский муниципальный район | C126: Муниципальное образование Бокситогорское городское поселение | D126: Г. Бокситогорск, ул. Социалистическая, д. 10 | E126: 2dc09fe9-4b4e-4ed1-854b-16e9bbff6064 | F126: РО | G126: 1951 | H126: 1343.6 | J126: 2 | K126: Фасад, ТС ХВС ГВС ЭС подвал ВО Фундамент Крыша /ПИР | M126: P | P126: P | R126: P | V126: P | W126: P
A127: 110 | B127: Бокситогорский муниципальный район | C127: Муниципальное образование Бокситогорское городское поселение | D127: Г. Бокситогорск, ул. Социалистическая, д. 11 | E127: 843f04e2-a2dd-41c2-99d4-5b3ff8f5851d | F127: РО | G127: 1951 | H127: 941.03 | J127: 2 | K127: Фасад, ТС ЭС ХВС ГВС ВО Фундамент Крыша /ПИР | M127: P | P127: P | R127: P | V127: P | W127: P
A128: 111 | B128: Бокситогорский муниципальный район | C128: Муниципальное образование Бокситогорское городское поселение | D128: Г. Бокситогорск, ул. Социалистическая, д. 12 | E128: ba701bdd-107f-4195-8489-b17547fff18c | F128: РО | G128: 1952 | H128: 565.88 | J128: 2 | K128: ЭС ТС ХВС ГВС ВО Фундамент Крыша фасад, /ПИР | P128: P | R128: P | V128: P | W128: P
A129: 112 | B129: Бокситогорский муниципальный район | C129: Муниципальное образование Бокситогорское городское поселение | D129: Г. Бокситогорск, ул. Социалистическая, д. 13 | E129: d5c4f121-6393-44f5-911a-3f3361e7c71a | F129: РО | G129: 1952 | H129: 2260.35 | J129: 2 | K129: Крыша фасад, подвал ТС ХВС ГВС ВО Фундамент ЭС /ПИР | M129: P | P129: P | R129: P | V129: P | W129: P
A130: 113 | B130: Бокситогорский муниципальный район | C130: Муниципальное образование Бокситогорское городское поселение | D130: Г. Бокситогорск, ул. Социалистическая, д. 15 | E130: c411b07d-0f60-4b0f-a929-397c7ebb76e5 | F130: РО | G130: 1956 | H130: 1853.61 | J130: 3 | K130: Крыша Фасад, подвал ВО Фундамент ЭС ТС ХВС ГВС /ПИР | L130: P | M130: P | P130: P | R130: P | T130: P | V130: P | W130: P
A131: 114 | B131: Бокситогорский муниципальный район | C131: Муниципальное образование Бокситогорское городское поселение | D131: Г. Бокситогорск, ул. Социалистическая, д. 16 | E131: d1934cd5-892b-4a72-9fca-2863a775174a | F131: РО | G131: 1952 | H131: 2203.15 | J131: 2 | K131: Фасад, ТС крыша ЭС ХВС ГВС подвал ВО Фундамент /ПИР | M131: P | P131: P | R131: P | V131: P
A132: 115 | B132: Бокситогорский муниципальный район | C132: Муниципальное образование Бокситогорское городское поселение | D132: Г. Бокситогорск, ул. Социалистическая, д. 17 | E132: f78b9f81-30bb-4a01-b716-40e596aacc18 | F132: РО | G132: 1956 | H132: 2131.84 | J132: 3 | K132: Фасад крыша, ХВС ГВС подвал ВО Фундамент ЭС ТС /ПИР | M132: P | P132: P | R132: P | T132: P | V132: P | W132: P
A133: 116 | B133: Бокситогорский муниципальный район | C133: Муниципальное образование Бокситогорское городское поселение | D133: Г. Бокситогорск, ул. Социалистическая, д. 18 | E133: 0284dbe4-23ac-4e55-9794-f9336ab46b8b | F133: РО | G133: 1953 | H133: 934.41 | J133: 2 | K133: ТС ГВС подвал ВО Фундамент ЭС ХВС крыша фасад, /ПИР | P133: P | R133: P | V133: P | W133: P
A134: 117 | B134: Бокситогорский муниципальный район | C134: Муниципальное образование Бокситогорское городское поселение | D134: Г. Бокситогорск, ул. Социалистическая, д. 19 | E134: 32fd8549-1d92-4b2a-a3f6-150b3c2293a8 | F134: РО | G134: 1956 | H134: 2101.95 | J134: 3 | K134: ТС крыша Фасад, ЭС ХВС ГВС подвал ВО Фундамент /ПИР | L134: P | M134: P | P134: P | R134: P | T134: P | V134: P
A135: 118 | B135: Бокситогорский муниципальный район | C135: Муниципальное образование Бокситогорское городское поселение | D135: Г. Бокситогорск, ул. Социалистическая, д. 19/2 | E135: 132d891d-46b3-45e9-924a-17777fd7993f | F135: РО | G135: 1963 | H135: 2167.3 | J135: 3 | K135: ТС крыша Фасад, Подвал ГВС ВО ЭС ХВС Фундамент /ПИР | L135: P | M135: P | P135: P | R135: P | T135: P | V135: P | W135: P | X135: P
A136: 119 | B136: Бокситогорский муниципальный район | C136: Муниципальное образование Бокситогорское городское поселение | D136: Г. Бокситогорск, ул. Социалистическая, д. 2 | E136: 8c63d11e-c136-4227-a79e-2e2d12977ad9 | F136: РО | G136: 1954 | H136: 2699.75 | J136: 3 | K136: Фасад, ТС ХВС ГВС подвал ЭС ВО Фундамент Крыша /ПИР | M136: P | P136: P | R136: P | T136: P | V136: P | W136: P
A137: 120 | B137: Бокситогорский муниципальный район | C137: Муниципальное образование Бокситогорское городское поселение | D137: Г. Бокситогорск, ул. Социалистическая, д. 20 | E137: 0a52634a-ae9b-4ed8-8d4f-e3777cbc4709 | F137: РО | G137: 1952 | H137: 928.74 | J137: 2 | K137: Крыша Подвал ТС ХВС ГВС ВО Фундамент ЭС фасад, /ПИР | L137: P | M137: P | P137: P | R137: P | V137: P | W137: P
A138: 121 | B138: Бокситогорский муниципальный район | C138: Муниципальное образование Бокситогорское городское поселение | D138: Г. Бокситогорск, ул. Социалистическая, д. 22 | E138: 2614d5a2-bd65-4f96-a14f-61fc54ab1c6c | F138: РО | G138: 1962 | H138: 3384.18 | J138: 5 | K138: ЭС крыша подвал фасад, ХВС ГВС ВО ТС фундамент /ПИР | M138: P | P138: P | R138: P | V138: P | W138: P
A139: 122 | B139: Бокситогорский муниципальный район | C139: Муниципальное образование Бокситогорское городское поселение | D139: Г. Бокситогорск, ул. Социалистическая, д. 24 | E139: 5c57cd78-b44e-4ede-a91a-bd33730750e7 | F139: РО | G139: 1962 | H139: 2856.87 | J139: 5 | K139: Подвал фасад, ТС ХВС ГВС ВО ЭС крыша фундамент /ПИР | P139: P | R139: P | V139: P | W139: P
A140: 123 | B140: Бокситогорский муниципальный район | C140: Муниципальное образование Бокситогорское городское поселение | D140: Г. Бокситогорск, ул. Социалистическая, д. 26 | E140: dc8c03c3-fcda-4ee8-af74-417edd074899 | F140: РО | G140: 1962 | H140: 2785.24 | J140: 4 | K140: Крыша ТС ЭС подвал фасад, ХВС ГВС ВО Фундамент /ПИР | M140: P | P140: P | R140: P | V140: P | W140: P
A141: 124 | B141: Бокситогорский муниципальный район | C141: Муниципальное образование Бокситогорское городское поселение | D141: Г. Бокситогорск, ул. Социалистическая, д. 28 | E141: ffedd958-0272-43f0-ba4d-697e9a3bfed8 | F141: РО | G141: 1977 | H141: 6044.39 | J141: 5 | K141: Крыша подвал фасад, ХВС ГВС ЭС ТС ВО /ПИР | P141: P | R141: P | V141: P | W141: P | X141: P
A142: 125 | B142: Бокситогорский муниципальный район | C142: Муниципальное образование Бокситогорское городское поселение | D142: Г. Бокситогорск, ул. Социалистическая, д. 3 | E142: dbbbd134-2804-47cb-bf49-29fd259b7eb1 | F142: РО | G142: 1951 | H142: 1752.71 | J142: 2 | K142: Подвал фасад, ЭС ХВС ГВС ВО Фундамент ТС крыша /ПИР | R142: P | S142: P | T142: P | V142: P | W142: P
A143: 126 | B143: Бокситогорский муниципальный район | C143: Муниципальное образование Бокситогорское городское поселение | D143: Г. Бокситогорск, ул. Социалистическая, д. 30 | E143: f7768782-2808-4886-a599-30f5562477d5 | F143: СС | G143: 1984 | H143: 2878.37 | J143: 5 | K143: ЭС подвал Крыша фасад, ТС ХВС ГВС фундамент /ПИР | V143: P | W143: P | X143: P
A144: 127 | B144: Бокситогорский муниципальный район | C144: Муниципальное образование Бокситогорское городское поселение | D144: Г. Бокситогорск, ул. Социалистическая, д. 32 | E144: 0c12d37d-9a85-42f3-9d7b-05a8469de44c | F144: РО | G144: 1989 | H144: 10633.14 | J144: 5 | K144: Крыша подвал фасад, ЭС ТС ХВС ГВС ВО /ПИР | V144: P | W144: P | X144: P
A145: 128 | B145: Бокситогорский муниципальный район | C145: Муниципальное образование Бокситогорское городское поселение | D145: Г. Бокситогорск, ул. Социалистическая, д. 4 | E145: 741d51fc-13a1-403f-af8b-cdaeb719855a | F145: РО | G145: 1951 | H145: 935.4 | J145: 2 | K145: ТС ХВС ГВС ВО Фундамент ЭС Крыша фасад, /ПИР | P145: P | R145: P | U145: P | V145: P | W145: P
A146: 129 | B146: Бокситогорский муниципальный район | C146: Муниципальное образование Бокситогорское городское поселение | D146: Г. Бокситогорск, ул. Социалистическая, д. 5 | E146: e0af2369-a7c1-4c4f-b732-589c89dccde2 | F146: РО | G146: 1951 | H146: 1560.26 | J146: 2 | K146: Подвал фасад, ЭС ТС ХВС ГВС ВО Фундамент Крыша /ПИР | R146: P | S146: P | T146: P | V146: P | W146: P
A147: 130 | B147: Бокситогорский муниципальный район | C147: Муниципальное образование Бокситогорское городское поселение | D147: Г. Бокситогорск, ул. Социалистическая, д. 6 | E147: 84daa10e-af66-4e8f-bbc6-7d2fb779bc65 | F147: РО | G147: 1952 | H147: 574.7 | J147: 2 | K147: ТС ГВС ВО Фундамент ЭС ХВС крыша фасад, /ПИР | P147: P | R147: P | V147: P | W147: P
A148: =A147+1 -> 131 | B148: Бокситогорский муниципальный район | C148: Муниципальное образование Бокситогорское городское поселение | D148: Г. Бокситогорск, ул. Социалистическая, д. 7 | E148: 3e4d23ca-bd31-458c-8d09-4be8d36e8ddb | F148: РО | G148: 1951 | H148: 1551.09 | J148: 2 | K148: Фасад, Крыша Подвал ЭС ТС ХВС ГВС ВО Фундамент /ПИР | M148: P | P148: P | R148: P | S148: P | T148: P | V148: P
A149: 132 | B149: Бокситогорский муниципальный район | C149: Муниципальное образование Бокситогорское городское поселение | D149: Г. Бокситогорск, ул. Социалистическая, д. 8 | E149: 5238d526-6430-4df5-bf14-a32d555ccad5 | F149: РО | G149: 1953 | H149: 943.07 | J149: 2 | K149: Крыша фасад, Подвал ЭС ТС ГВС ВО Фундамент ХВС /ПИР | L149: P | M149: P | P149: P | R149: P | T149: P | V149: P | W149: P
A150: 133 | B150: Бокситогорский муниципальный район | C150: Муниципальное образование Бокситогорское городское поселение | D150: Г. Бокситогорск, ул. Спортивная, д. 10 | E150: ac4df647-3313-47d7-be99-14aee8241c7a | F150: РО | G150: 1969 | H150: 2859.4 | J150: 5 | K150: Фасад, Подвал ЭС ТС ХВС ГВС ВО крыша Фундамент /ПИР | M150: P | P150: P | R150: P | W150: P | X150: P
A151: 134 | B151: Бокситогорский муниципальный район | C151: Муниципальное образование Бокситогорское городское поселение | D151: Г. Бокситогорск, ул. Спортивная, д. 12 | E151: fc5be5c1-0c90-43a7-b66e-86d625d8707b | F151: РО | G151: 1972 | H151: 3358.8 | J151: 5 | K151: Фасад, Подвал ТС ХВС ЭС ГВС ВО крыша Фундамент /ПИР | M151: P | P151: P | R151: P | V151: P | W151: P | X151: P
A152: 135 | B152: Бокситогорский муниципальный район | C152: Муниципальное образование Бокситогорское городское поселение | D152: Г. Бокситогорск, ул. Спортивная, д. 14 | E152: e164bd86-a71b-4b3b-8ce4-a040c31b43db | F152: РО | G152: 1970 | H152: 3848.32 | J152: 5 | K152: Крыша фасад, подвал ЭС ТС ХВС ГВС ВО Фундамент /ПИР | M152: P | P152: P | R152: P | W152: P | X152: P
A153: 136 | B153: Бокситогорский муниципальный район | C153: Муниципальное образование Бокситогорское городское поселение | D153: Г. Бокситогорск, ул. Спортивная, д. 2 | E153: 6b2bc486-ac45-4e48-9f98-251e4d9c9e9b | F153: РО | G153: 1959 | H153: 2959.99 | J153: 3 | K153: Крыша фасад, ТС ХВС ГВС ВО фундамент ЭС /ПИР | M153: P | T153: P | V153: P | W153: P
A154: 137 | B154: Бокситогорский муниципальный район | C154: Муниципальное образование Бокситогорское городское поселение | D154: Г. Бокситогорск, ул. Спортивная, д. 4 | E154: beccf626-f80e-48dc-bee9-eccb3e006de2 | F154: РО | G154: 1958 | H154: 1459.5 | J154: 3 | K154: Крыша фасад, подвал ЭС ТС ХВС ГВС ВО фундамент /ПИР | M154: P | P154: P | R154: P | W154: P
A155: 138 | B155: Бокситогорский муниципальный район | C155: Муниципальное образование Бокситогорское городское поселение | D155: Г. Бокситогорск, ул. Спортивная, д. 6 | E155: 147dcf70-2d55-435f-a5c8-d43002262aa6 | F155: РО | G155: 1959 | H155: 2523.44 | J155: 3 | K155: Крыша фасад, ХВС ГВС Фундамент ТС /ПИР | M155: P | T155: P | V155: P | W155: P
A156: 139 | B156: Бокситогорский муниципальный район | C156: Муниципальное образование Бокситогорское городское поселение | D156: Г. Бокситогорск, ул. Спортивная, д. 8 | E156: e3396055-28bf-49f1-8c00-cb418f28a30d | F156: РО | G156: 1959 | H156: 2550.59 | J156: 3 | K156: Крыша фасад, ТС ХВС ГВС ВО фундамент ЭС /ПИР | M156: P | T156: P | V156: P | W156: P
A157: 140 | B157: Бокситогорский муниципальный район | C157: Муниципальное образование Бокситогорское городское поселение | D157: Г. Бокситогорск, ул. Школьная, д. 10 | E157: ea371a3b-8d40-44cc-a3fd-893658905bf4 | F157: РО | G157: 1955 | H157: 1718.55 | J157: 3 | K157: Фасад ХВС ГВС подвал ВО Фундамент ЭС ТС крыша /ПИР | M157: P | P157: P | R157: P | T157: P | V157: P | W157: P
A158: 141 | B158: Бокситогорский муниципальный район | C158: Муниципальное образование Бокситогорское городское поселение | D158: Г. Бокситогорск, ул. Школьная, д. 11/15 | E158: cfe0d85b-bf12-48e9-89b2-45f90ad656f1 | F158: РО | G158: 1952 | H158: 724.7 | J158: 2 | K158: ТС ХВС ГВС подвал ВО Фундамент ЭС крыша фасад, /ПИР | P158: P | R158: P | V158: P | W158: P
A159: 142 | B159: Бокситогорский муниципальный район | C159: Муниципальное образование Бокситогорское городское поселение | D159: Г. Бокситогорск, ул. Школьная, д. 12 | E159: 1265227f-7fc5-4985-88f0-91cc3a632b92 | F159: РО | G159: 1954 | H159: 1022.78 | J159: 2 | K159: ЭС ТС ХВС ГВС подвал ВО Фундамент Крыша фасад, /ПИР | M159: P | P159: P | R159: P | T159: P | V159: P | W159: P
A160: 143 | B160: Бокситогорский муниципальный район | C160: Муниципальное образование Бокситогорское городское поселение | D160: Г. Бокситогорск, ул. Школьная, д. 14/13 | E160: 8f9a3b31-0fae-485e-92f7-409599c1b1c6 | F160: РО | G160: 1954 | H160: 932.3 | J160: 2 | K160: ТС ЭС ХВС ГВС подвал ВО Фундамент Крыша фасад, /ПИР | L160: P | M160: P | P160: P | R160: P | T160: P | V160: P | W160: P
A161: 144 | B161: Бокситогорский муниципальный район | C161: Муниципальное образование Бокситогорское городское поселение | D161: Г. Бокситогорск, ул. Школьная, д. 16/6 | E161: 83a1cacb-10af-4406-8149-64a9daba424b | F161: РО | G161: 1956 | H161: 3492 | J161: 3 | K161: Фасад, ЭС подвал ТС ХВС ГВС ВО Фундамент Крыша /ПИР | M161: P | S161: P | T161: P | V161: P | W161: P
A162: 145 | B162: Бокситогорский муниципальный район | C162: Муниципальное образование Бокситогорское городское поселение | D162: Г. Бокситогорск, ул. Школьная, д. 17 | E162: 569d2f46-1710-40b4-a94c-7fd1b8806d3c | F162: РО | G162: 1957 | H162: 3643.97 | J162: 3 | K162: Подвал ХВС ГВС ВО Фундамент ЭС ТС крыша фасад, /ПИР | S162: P | T162: P | V162: P | W162: P
A163: 146 | B163: Бокситогорский муниципальный район | C163: Муниципальное образование Бокситогорское городское поселение | D163: Г. Бокситогорск, ул. Школьная, д. 20 | E163: b887f4ab-08a6-452d-9124-bf1f85af5c04 | F163: РО | G163: 1954 | H163: 819.45 | J163: 2 | K163: Подвал ХВС ГВС ВО Фундамент ЭС ТС крыша фасад, /ПИР | S163: P | T163: P | V163: P | W163: P
A164: 147 | B164: Бокситогорский муниципальный район | C164: Муниципальное образование Бокситогорское городское поселение | D164: Г. Бокситогорск, ул. Школьная, д. 21 | E164: 8a552278-6e0a-4faf-9181-c45388bccc69 | F164: РО | G164: 1956 | H164: 3602.01 | J164: 3 | K164: Крыша ТС ХВС ГВС ВО Фундамент Фасад, /ПИР | R164: P | T164: P | V164: P
A165: 148 | B165: Бокситогорский муниципальный район | C165: Муниципальное образование Бокситогорское городское поселение | D165: Г. Бокситогорск, ул. Школьная, д. 23 | E165: ccfff1db-0063-4b33-a9a3-081cc20a8c60 | F165: РО | G165: 1956 | H165: 3892.68 | J165: 3 | K165: Крыша Фасад, ТС ХВС ГВС ВО Фундамент /ПИР | R165: P | S165: P | T165: P | V165: P
A166: 149 | B166: Бокситогорский муниципальный район | C166: Муниципальное образование Бокситогорское городское поселение | D166: Г. Бокситогорск, ул. Школьная, д. 24/8 | E166: 628ad0f7-d0c6-4dbe-acc7-e031e4681b5e | F166: РО | G166: 1941 | H166: 3953 | J166: 4 | K166: ЭС крыша подвал фасад, ТС ХВС ГВС ВО Фундамент /ПИР | P166: P | R166: P | S166: P | T166: P
A167: 150 | B167: Бокситогорский муниципальный район | C167: Муниципальное образование Бокситогорское городское поселение | D167: Г. Бокситогорск, ул. Школьная, д. 26 | E167: 2b8c758a-0f92-4101-bdc5-aa3484f07b8a | F167: РО | G167: 1931 | H167: 763.84 | J167: 2 | K167: ХВС ГВС подвал ВО фундамент ЭС ТС крыша фасад, /ПИР | R167: P | S167: P | W167: P
A168: 151 | B168: Бокситогорский муниципальный район | C168: Муниципальное образование Бокситогорское городское поселение | D168: Г. Бокситогорск, ул. Школьная, д. 28 | E168: 5bc4aad1-ebb1-4a90-96cb-10211267500e | F168: РО | G168: 1953 | H168: 614.8 | J168: 2 | K168: Фасад ЭС ТС ХВС, ГВС подвал ВО Фундамент Крыша /ПИР | M168: P | P168: P | R168: P | T168: P | V168: P | W168: P
A169: 152 | B169: Бокситогорский муниципальный район | C169: Муниципальное образование Бокситогорское городское поселение | D169: Г. Бокситогорск, ул. Школьная, д. 30 | E169: aee3c440-54ff-40c7-8631-ee9754bfc7f1 | F169: РО | G169: 1951 | H169: 760.2 | J169: 2 | K169: Подвал ХВС ГВС ВО Фундамент ЭС ТС крыша фасад, /ПИР | R169: P | S169: P | T169: P | V169: P | W169: P
A170: 153 | B170: Бокситогорский муниципальный район | C170: Муниципальное образование Бокситогорское городское поселение | D170: Г. Бокситогорск, ул. Школьная, д. 5 | E170: 18c109d6-7775-4926-bd95-19186925cd85 | F170: РО | G170: 1953 | H170: 715.4 | J170: 2 | K170: Подвал ТС ХВС ГВС ВО Фундамент ЭС крыша фасад, /ПИР | M170: P | P170: P | R170: P | T170: P | V170: P | W170: P
A171: 154 | B171: Бокситогорский муниципальный район | C171: Муниципальное образование Бокситогорское городское поселение | D171: Г. Бокситогорск, ул. Школьная, д. 7 | E171: c597ec5d-a4d5-41c0-ad54-44d7a8a1a723 | F171: РО | G171: 1954 | H171: 405.6 | J171: 2 | K171: ТС ХВС ГВС ВО Фундамент ЭС крыша фасад, /ПИР | M171: P | P171: P | R171: P | T171: P | V171: P | W171: P
A172: 155 | B172: Бокситогорский муниципальный район | C172: Муниципальное образование Бокситогорское городское поселение | D172: Г. Бокситогорск, ул. Школьная, д. 8/12 | E172: 8a8f4d8a-02a7-4c2e-9c7b-b3e25ea8a904 | F172: РО | G172: 1953 | H172: 1025.1 | J172: 2 | K172: Подвал ЭС ТС ХВС ГВС ВО Фундамент Крыша фасад, /ПИР | M172: P | P172: P | R172: P | T172: P | V172: P | W172: P
A173: 156 | B173: Бокситогорский муниципальный район | C173: Муниципальное образование Бокситогорское городское поселение | D173: Г. Бокситогорск, ул. Школьная, д. 9 | E173: e7c1803f-162c-4b23-ae9c-d0aeebdca74c | F173: РО | G173: 1953 | H173: 722.72 | J173: 2 | K173: ТС ХВС ГВС подвал ВО Фундамент ЭС крыша фасад, /ПИР | M173: P | P173: P | R173: P | T173: P | V173: P | W173: P
A174: 157 | B174: Бокситогорский муниципальный район | C174: Муниципальное образование Бокситогорское городское поселение | D174: Г. Бокситогорск, ул. Южная, д. 13 | E174: 16ba5b1f-950d-4f83-82a0-f8198c9bafe9 | F174: РО | G174: 1974 | H174: 6135.33 | J174: 5 | K174: Подвал фасад, ТС ХВС ГВС ЭС крыша ВО /ПИР | P174: P | R174: P | V174: P | W174: P | X174: P
A175: 158 | B175: Бокситогорский муниципальный район | C175: Муниципальное образование Бокситогорское городское поселение | D175: Г. Бокситогорск, ул. Южная, д. 13/1 | E175: 4385901d-d631-4274-96ac-1dadd7405ba5 | F175: РО | G175: 1983 | H175: 6000.76 | J175: 5 | K175: Крыша подвал фасад, ЭС ТС ХВС ГВС ВО /ПИР | T175: P | V175: P | X175: P
A176: 159 | B176: Бокситогорский муниципальный район | C176: Муниципальное образование Бокситогорское городское поселение | D176: Г. Бокситогорск, ул. Южная, д.15 | E176: 78160ca2-b8ea-4daa-ae18-542c0691d4aa | F176: РО | G176: 1971 | H176: 6256.57 | J176: 5 | K176: фасад, ТС ХВС ГВС ЭС ВО крыша Фундамент /ПИР | M176: P | R176: P | V176: P | W176: P | X176: P
A177: 160 | B177: Бокситогорский муниципальный район | C177: Муниципальное образование Бокситогорское городское поселение | D177: Г. Бокситогорск, ул. Южная, д.15/2 | E177: 32b070f9-adae-44e1-a423-60e824de3053 | F177: РО | G177: 1975 | H177: 6194.14 | J177: 5 | K177: Подвал фасад, ЭС ТС ХВС ГВС Крыша ВО /ПИР | P177: P | R177: P | U177: P | V177: P | W177: P | X177: P
A178: 161 | B178: Бокситогорский муниципальный район | C178: Муниципальное образование Бокситогорское городское поселение | D178: Г. Бокситогорск, ул. Южная, д.17 | E178: c59e6e69-7133-4b5c-a2bf-45500f3fa843 | F178: РО | G178: 1973 | H178: 5551.79 | J178: 5 | K178: Подвал фасад, ЭС ТС ХВС ГВС крыша ВО /ПИР | P178: P | R178: P | W178: P | X178: P
A179: 162 | B179: Бокситогорский муниципальный район | C179: Муниципальное образование Бокситогорское городское поселение | D179: Г. Бокситогорск, ул. Южная, д.19 | E179: aaa15d8c-f0e3-40d8-966d-1a6726139348 | F179: РО | G179: 1972 | H179: 4500.06 | J179: 5 | K179: Подвал фасад, ЭС ТС ХВС ГВС ВО крыша Фундамент /ПИР | P179: P | R179: P | W179: P | X179: P
A180: 163 | B180: Бокситогорский муниципальный район | C180: Муниципальное образование Бокситогорское городское поселение | D180: Г. Бокситогорск, ул. Южная, д.25 | E180: ccfb0ff8-22ed-4c15-b62f-68bd5e280297 | F180: РО | G180: 1969 | H180: 1299.3 | J180: 2 | K180: Крыша подвал фасад, ЭС ТС ХВС ГВС ВО Фундамент /ПИР | M180: P | P180: P | R180: P | U180: P | W180: P | X180: P
A181: 164 | B181: Бокситогорский муниципальный район | C181: Муниципальное образование Бокситогорское городское поселение | D181: Г. Бокситогорск, ул. Южная, д.5а | E181: 1ebd379f-e110-4997-a2d6-ba26fbc604b0 | F181: РО | G181: 1988 | H181: 4092.22 | J181: 5 | K181: Крыша подвал фасад, ЭС ТС ХВС ГВС ВО /ПИР | V181: P | W181: P | X181: P
A182: 165 | B182: Бокситогорский муниципальный район | C182: Муниципальное образование Бокситогорское городское поселение | D182: Г. Бокситогорск, ул. Южная, д.7 | E182: a762a321-27f3-4afe-b379-206f150bf776 | F182: РО | G182: 1951 | H182: 454.32 | J182: 2 | K182: Фасад, крыша ТС ЭС подвал ХВС ГВС ВО Фундамент /ПИР | M182: P | P182: P | R182: P | V182: P
A183: 166 | B183: Бокситогорский муниципальный район | C183: Муниципальное образование Бокситогорское городское поселение | D183: Г. Бокситогорск, ш. Дымское, д. 2/1 | E183: 4ba63342-b21e-47c9-836e-795772d6e7d9 | F183: РО | G183: 1955 | H183: 4940.66 | J183: 3 | K183: Фасад, ЭС подвал ХВС ГВС ВО Фундамент ТС крыша /ПИР | M183: P | S183: P | T183: P | V183: P | W183: P
A184: 167 | B184: Бокситогорский муниципальный район | C184: Муниципальное образование Бокситогорское городское поселение | D184: Г. Бокситогорск, ш. Дымское, д. 3 | E184: c479fc34-6074-4108-ba91-e2b977f102fd | F184: РО | G184: 1939 | H184: 2483.96 | J184: 3 | K184: ТС ХВС ГВС ЭС Фасад, крыша ВО подвал Фундамент /ПИР | M184: P | P184: P | R184: P
A185: 168 | B185: Бокситогорский муниципальный район | C185: Муниципальное образование Бокситогорское городское поселение | D185: Г. Бокситогорск, ш. Дымское, д. 4 | E185: 99817b5a-fcbb-4c9a-a0b0-c4e894e7775f | F185: РО | G185: 1959 | H185: 3765.88 | J185: 3 | K185: ЭС ТС ХВС ГВС ВО подвал фасад, фундамент ПУ Крыша /ПИР | L185: P | M185: P | P185: P | R185: P
A186: 169 | B186: Бокситогорский муниципальный район | C186: Муниципальное образование Бокситогорское городское поселение | D186: Дер. Сегла, д. 3 | E186: a2b3e2a7-a7a7-4a84-982a-261de1e5c80b | F186: РО | G186: 1973 | H186: 1297.4 | J186: 2 | K186: Подвал ЭС ГВС ВО ТС ХВС крыша фасад, Фундамент /ПИР | T186: P | U186: P | V186: P | W186: P | X186: P
A187: 170 | B187: Бокситогорский муниципальный район | C187: Муниципальное образование Бокситогорское городское поселение | D187: Дер. Сегла, д. 6 | E187: a6b89ebe-f3d9-4792-9aa2-59da206b714e | F187: РО | G187: 1975 | H187: 1970.9 | J187: 3 | K187: Подвал ЭС ТС ХВС ГВС крыша фасад, ВО фундамент /ПИР | T187: P | U187: P | W187: P | X187: P
A188: 171 | B188: Бокситогорский муниципальный район | C188: Муниципальное образование Бокситогорское городское поселение | D188: Дер. Сегла, д. 7 | E188: fc6ea148-c946-425b-9c43-e5bf85cd2f08 | F188: РО | G188: 1975 | H188: 1967.9 | J188: 3 | K188: Подвал ТС ХВС ГВС ЭС крыша фасад, ВО фундамент /ПИР | T188: P | V188: P | W188: P | X188: P
A189: 172 | B189: Бокситогорский муниципальный район | C189: Муниципальное образование Большедворское сельское поселение | D189: Дер. Большой Двор, д. 1 | E189: 419616cf-3429-4415-a834-243d94fa085d | F189: РО | G189: 1962 | H189: 843.86 | J189: 2 | K189: Крыша ТС ХВС ГВС ВО фундамент Фасад, /ПИР | R189: P | T189: P | V189: P
A190: 173 | B190: Бокситогорский муниципальный район | C190: Муниципальное образование Большедворское сельское поселение | D190: Дер. Большой Двор, д. 10 | E190: 72ff1a98-04e4-483f-9ca3-d9f1e004583f | F190: РО | G190: 1975 | H190: 1592.9 | J190: 2 | K190: Подвал ЭС ТС ХВС ГВС Крыша фасад, ВО фундамент /ПИР | T190: P | U190: P | V190: P | W190: P | X190: P
A191: 174 | B191: Бокситогорский муниципальный район | C191: Муниципальное образование Большедворское сельское поселение | D191: Дер. Большой Двор, д. 11 | E191: b5f6ab53-2bea-4ec9-b163-286aae0f6b02 | F191: РО | G191: 1975 | H191: 1588.3 | J191: 2 | K191: Крыша подвал ЭС ТС ХВС ГВС фасад, ВО фундамент /ПИР | T191: P | U191: P | V191: P | W191: P | X191: P
A192: 175 | B192: Бокситогорский муниципальный район | C192: Муниципальное образование Большедворское сельское поселение | D192: Дер. Большой Двор, д. 12 | E192: 0af468d6-309c-490b-bfd5-3e11069e0865 | F192: РО | G192: 1976 | H192: 1589.8 | J192: 2 | K192: Подвал ЭС ТС ХВС ГВС Крыша фасад, ВО фундамент /ПИР | T192: P | U192: P | V192: P | W192: P | X192: P
A193: 176 | B193: Бокситогорский муниципальный район | C193: Муниципальное образование Большедворское сельское поселение | D193: Дер. Большой Двор, д. 13 | E193: 39abed53-46a5-4281-8948-e7020fc43b74 | F193: РО | G193: 1978 | H193: 1959.6 | J193: 3 | K193: Крыша подвал фасад, ЭС ТС ХВС ГВС ВО фундамент /ПИР | T193: P | V193: P | X193: P
A194: 177 | B194: Бокситогорский муниципальный район | C194: Муниципальное образование Большедворское сельское поселение | D194: Дер. Большой Двор, д. 14 | E194: 9da5be79-4476-466a-86c9-ab6ec4bd6392 | F194: РО | G194: 1979 | H194: 2738.78 | J194: 3 | K194: Крыша подвал ЭС ТС ХВС ГВС фасад, ВО фундамент /ПИР | T194: P | V194: P | W194: P | X194: P
A195: 178 | B195: Бокситогорский муниципальный район | C195: Муниципальное образование Большедворское сельское поселение | D195: Дер. Большой Двор, д. 15 | E195: 6994fdeb-9b2a-4bd4-a059-945e218ab1b2 | F195: РО | G195: 1983 | H195: 2107.41 | J195: 3 | K195: ЭС ТС ХВС ГВС крыша подвал фасад, ВО фундамент /ПИР | V195: P | W195: P | X195: P
A196: 179 | B196: Бокситогорский муниципальный район | C196: Муниципальное образование Большедворское сельское поселение | D196: Дер. Большой Двор, д. 16 | E196: 0936bf45-f202-4381-8f96-e356aba082f9 | F196: РО | G196: 1983 | H196: 2104.81 | J196: 3 | K196: ЭС ТС ХВС ГВС крыша подвал фасад, ВО фундамент /ПИР | V196: P | W196: P | X196: P
A197: 180 | B197: Бокситогорский муниципальный район | C197: Муниципальное образование Большедворское сельское поселение | D197: Дер. Большой Двор, д. 17 | E197: 4f763779-a9cd-4734-9e05-3884ce506354 | F197: РО | G197: 1987 | H197: 2065.01 | J197: 3 | K197: ЭС подвал фасад, Крыша ТС ХВС ГВС ВО фундамент /ПИР | V197: P | W197: P | X197: P
A198: 181 | B198: Бокситогорский муниципальный район | C198: Муниципальное образование Большедворское сельское поселение | D198: Дер. Большой Двор, д. 18 | E198: f8af9d26-2248-4a22-9ec2-04752c8e9f58 | F198: РО | G198: 1987 | H198: 2064.41 | J198: 3 | K198: ЭС подвал фасад, Крыша ТС ХВС ГВС ВО фундамент /ПИР | V198: P | W198: P | X198: P
A199: 182 | B199: Бокситогорский муниципальный район | C199: Муниципальное образование Большедворское сельское поселение | D199: Дер. Большой Двор, д. 19 | E199: b1e8e214-9e5e-4441-a686-9dfb880ab712 | F199: РО | G199: 1988 | H199: 2786.39 | J199: 3 | K199: ЭС подвал Крыша фасад, ТС ХВС ГВС ВО фундамент /ПИР | V199: P | W199: P | X199: P
A200: 183 | B200: Бокситогорский муниципальный район | C200: Муниципальное образование Большедворское сельское поселение | D200: Дер. Большой Двор, д. 2 | E200: 8cb1d569-e5ab-43e5-97a7-f0e58a3ce654 | F200: РО | G200: 1962 | H200: 841.7 | J200: 2 | K200: Крыша ТС ХВС ГВС ВО фундамент фасад, /ПИР | R200: P | T200: P | V200: P | W200: P
A201: 184 | B201: Бокситогорский муниципальный район | C201: Муниципальное образование Большедворское сельское поселение | D201: Дер. Большой Двор, д. 20 | E201: d8865694-c5a6-449d-98cb-ed4c1d9445c0 | F201: РО | G201: 1988 | H201: 2751.89 | J201: 3 | K201: ЭС подвал Крыша фасад, ТС ХВС ГВС ВО фундамент /ПИР | V201: P | W201: P | X201: P
A202: 185 | B202: Бокситогорский муниципальный район | C202: Муниципальное образование Большедворское сельское поселение | D202: Дер. Большой Двор, д. 3 | E202: 23c4fe76-cc71-4c05-aaab-1d73bbfd042c | F202: РО | G202: 1964 | H202: 1096.28 | J202: 2 | K202: ЭС ТС ХВС ГВС крыша фасад, Фундамент /ПИР | T202: P | W202: P | X202: P
A203: 186 | B203: Бокситогорский муниципальный район | C203: Муниципальное образование Большедворское сельское поселение | D203: Дер. Большой Двор, д. 4 | E203: 3b07b858-bdf6-4c2d-b1b7-eb2796c3adff | F203: РО | G203: 1964 | H203: 1095.92 | J203: 2 | K203: ЭС ВО ТС ХВС ГВС крыша фасад, Фундамент /ПИР | T203: P | V203: P | W203: P | X203: P
A204: 187 | B204: Бокситогорский муниципальный район | C204: Муниципальное образование Большедворское сельское поселение | D204: Дер. Большой Двор, д. 6 | E204: d5bc1e8f-478e-4c9d-bfdd-6191d9623363 | F204: РО | G204: 1970 | H204: 822.3 | J204: 2 | K204: ЭС ТС ХВС ГВС ВО Крыша фасад, Фундамент /ПИР | U204: P | V204: P | W204: P | X204: P
A205: 188 | B205: Бокситогорский муниципальный район | C205: Муниципальное образование Большедворское сельское поселение | D205: Дер. Большой Двор, д. 7 | E205: cc1bb605-f15a-4e29-9bfa-a9c0995d293a | F205: РО | G205: 1970 | H205: 823 | J205: 2 | K205: ЭС ТС ХВС ГВС ВО Крыша фасад, Фундамент /ПИР | U205: P | V205: P | W205: P | X205: P
A206: 189 | B206: Бокситогорский муниципальный район | C206: Муниципальное образование Большедворское сельское поселение | D206: Дер. Большой Двор, д. 8 | E206: ece0d4b4-6fad-424e-94eb-e45811d5582b | F206: РО | G206: 1970 | H206: 834.3 | J206: 2 | K206: ЭС ВО ТС ХВС ГВС крыша фасад, Фундамент /ПИР | U206: P | V206: P | W206: P | X206: P
A207: 190 | B207: Бокситогорский муниципальный район | C207: Муниципальное образование Большедворское сельское поселение | D207: Дер. Большой Двор, д. 9 | E207: dadfd653-6d83-4962-8eda-a105ddebc9ad | F207: РО | G207: 1971 | H207: 1313.2 | J207: 2 | K207: Подвал ЭС ТС ХВС ГВС ВО Крыша фасад, Фундамент /ПИР | T207: P | U207: P | V207: P | W207: P | X207: P
... 4292 more rows
